[Event "Turkish Cup 2024"]
[Site "Denizli"]
[Date "2024.08.01"]
[Round "4"]
[White "Kurdas, Halil Ibrahim"]
[Black "Madsman, Berk"]
[Result "1/2-1/2"]
[ECO "E08"]
[WhiteElo "1855"]
[BlackElo "1797"]
[Annotator "NA"]
[PlyCount "80"]
[EventDate "2024.08.01"]
[EventType "swiss"]
[EventCountry "TUR"]
[SourceTitle "playchess.com"]
[Source "ChessBase"]
[SourceQuality "1"]
[TimeControl "5400+30"]

1. d4 {[%emt 0:01:00]} d5 {[%emt 0:01:00]} 2. c4 {[%emt 0:00:00]} e6 {[%emt 0:00:30]} 3. Nf3 {[%emt 0:00:00]} Nf6 {[%emt 0:00:30]} 4. g3 {[%emt 0:00:30]} Be7 {[%emt 0:01:30]} 5. Bg2 {[%emt 0:00:30]} O-O {[%emt 0:00:30]} 6. O-O {[%emt 0:00:00]} Nbd7 {[%emt 0:01:30]} 7. Qc2 {[%emt 0:00:00]} c6 {[%emt 0:03:30]} 8. Nbd2 {[%emt 0:00:30]} b6 {[%emt 0:01:30]} 9. e4 {[%emt 0:02:30]} dxe4 {[%emt 0:01:30]} 10. Nxe4 {[%emt 0:00:00]} Nxe4 {[%emt 0:05:30]} 11. Qxe4 {[%emt 0:01:00]} Ba6 {[%emt 0:03:30]} 12. b3 {[%emt 0:02:30]} Rc8 {[%emt 0:00:00]} 13. Rd1 {[%emt 0:00:30]} Nf6 {[%emt 0:01:00]} 14. Qc2 {[%emt 0:02:30]} Bb7 {[%emt 0:05:30]} 15. Qe2 {[%emt 0:03:30]} Qc7 {[%emt 0:05:30]} 16. Bf4 {[%emt 0:03:30]} Bd6 {[%emt 0:01:30]} 17. Ne5 {[%emt 0:00:00]} Nd7 {[%emt 0:00:30]} 18. Qh5 {[%emt 0:09:00]} Nxe5 {[%emt 0:05:30]} 19. dxe5 {[%emt 0:01:30]} Be7 {[%emt 0:01:30]} 20. Be4 {[%emt 0:00:30]} g6 {[%emt 0:00:00]} 21. Qf3 {[%emt 0:00:00]} Ba8 {[%emt 0:04:00]} 22. h4 {[%emt 0:05:00]} c5 {[%emt 0:02:30]} 23. Rd3 {[%emt 0:04:30]} Bxe4 {[%emt 0:02:30]} 24. Qxe4 {[%emt 0:00:00]} Rfd8 {[%emt 0:01:30]} 25. Rad1 {[%emt 0:01:00]} Rxd3 {[%emt 0:04:30]} 26. Rxd3 {[%emt 0:02:30]} Rd8 {[%emt 0:15:30]} 27. Rxd8+ {[%emt 0:01:30]} Bxd8 {[%emt 0:00:30]} 28. Bh6 {[%emt 0:01:30]} Qc8 {[%emt 0:00:30]} 29. g4 {[%emt 0:01:30]} Be7 {[%emt 0:00:30]} 30. h5 {[%emt 0:01:30]} g5 {[%emt 0:04:30]} 31. Kf1 {[%emt 0:03:30]} Qd8 {[%emt 0:02:30]} 32. Ke2 {[%emt 0:01:30]} a6 {[%emt 0:06:56]} 33. Qb7 {[%emt 0:06:30]} Qd4 {[%emt 0:03:09]} 34. Qxe7 {[%emt 0:31:38]} Qe4+ {[%emt 0:00:34]} 35. Kd2 {[%emt 0:00:30]} Qd4+ {[%emt 0:00:00]} 36. Kc2 {[%emt 0:00:03]} Qxf2+ {[%emt 0:00:00]} 37. Kb1 {[%emt 0:00:24]} Qe1+ {[%emt 0:00:00]} 38. Kc2 {[%emt 0:00:40]} Qe2+ {[%emt 0:00:12]} 39. Kc1 {[%emt 0:00:10]} Qe1+ {[%emt 0:00:30]} 40. Kb2 {[%emt 0:00:00]} Qd2+ {[%emt 0:00:00]} 1/2-1/2

[Event "Turkish Cup 2024"]
[Site "Denizli"]
[Date "2024.08.01"]
[Round "4"]
[White "Tektas, Onur Efe"]
[Black "Cevizci, Yusuf Baran"]
[Result "1/2-1/2"]
[ECO "B10"]
[WhiteElo "1851"]
[BlackElo "2102"]
[Annotator "ChessBase"]
[PlyCount "40"]
[EventDate "2024.08.01"]
[EventType "swiss"]
[EventCountry "TUR"]
[SourceTitle "playchess.com"]
[Source "ChessBase"]
[SourceQuality "1"]
[TimeControl "5400+30"]

1. e4 {[%emt 0:01:00]} c6 {[%emt 0:05:00]} 2. Nf3 {[%emt 0:00:30]} d5 {[%emt 0:00:30]} 3. exd5 {[%emt 0:00:00]} cxd5 {[%emt 0:00:00]} 4. Ne5 {[%emt 0:00:00]} Nd7 {[%emt 0:01:00]} 5. d4 {[%emt 0:01:30]} Ngf6 {[%emt 0:00:30]} 6. Bd3 {[%emt 0:00:30]} g6 {[%emt 0:00:30]} 7. O-O {[%emt 0:03:30]} Bg7 {[%emt 0:00:30]} 8. Qe2 {[%emt 0:02:30]} O-O {[%emt 0:00:00]} 9. Nd2 {[%emt 0:02:30]} Re8 {[%emt 0:07:00]} 10. f4 {[%emt 0:02:30]} Qb6 {[%emt 0:02:30]} 11. c3 {[%emt 0:03:30]} Nh5 {[%emt 0:03:30]} 12. Ndf3 {[%emt 0:02:30]} Nf8 {[%emt 0:04:30]} 13. g4 {[%emt 0:10:30]} Bxe5 {[%emt 0:06:30]} 14. Nxe5 {[%emt 0:00:30]} Ng7 {[%emt 0:00:30]} 15. h3 {[%emt 0:17:30]} a6 {[%emt 0:01:30]} 16. Qf3 {[%emt 0:06:30]} e6 {[%emt 0:06:30]} 17. g5 {[%emt 0:05:30]} Nd7 {[%emt 0:11:30]} 18. b3 {[%emt 0:04:30]} Qd8 {[%emt 0:10:30]} 19. h4 {[%emt 0:05:30]} Nh5 {[%emt 0:07:30]} 20. Kg2 {[%emt 0:04:30]} b5 {[%emt 0:09:30]} 1/2-1/2

[Event "Turkish Cup 2024"]
[Site "Denizli"]
[Date "2024.08.01"]
[Round "4"]
[White "Alagoz, Mahmut"]
[Black "Hatirli, Ugur Can"]
[Result "0-1"]
[ECO "D18"]
[WhiteElo "1843"]
[BlackElo "1948"]
[Annotator "RC"]
[PlyCount "106"]
[EventDate "2024.08.01"]
[EventType "swiss"]
[EventCountry "TUR"]
[SourceTitle "playchess.com"]
[Source "ChessBase"]
[SourceQuality "1"]
[TimeControl "5400+30"]

1. d4 {[%emt 0:01:00]} Nf6 {[%emt 0:01:00]} 2. Nf3 {[%emt 0:00:00]} d5 {[%emt 0:00:30]} 3. c4 {[%emt 0:00:00]} c6 {[%emt 0:00:00]} 4. Nc3 {[%emt 0:00:30]} dxc4 {[%emt 0:00:00]} 5. a4 {[%emt 0:01:30]} Bf5 {[%emt 0:01:30]} 6. e3 {[%emt 0:03:30]} e6 {[%emt 0:00:30]} 7. Bxc4 {[%emt 0:00:30]} Bb4 {[%emt 0:00:30]} 8. Bd2 {[%emt 0:01:30]} a5 {[%emt 0:01:30]} 9. O-O {[%emt 0:00:30]} Nbd7 {[%emt 0:03:30]} 10. h3 {[%emt 0:01:30]} h6 {[%emt 0:04:30]} 11. Re1 {[%emt 0:03:30]} Bh7 {[%emt 0:04:30]} 12. Ne2 {[%emt 0:08:30]} Bd6 {[%emt 0:00:30]} 13. Bc3 {[%emt 0:01:30]} Ne4 {[%emt 0:08:30]} 14. Bd3 {[%emt 0:05:30]} Ndf6 {[%emt 0:03:30]} 15. Ne5 {[%emt 0:00:30]} Nxc3 {[%emt 0:05:30]} 16. Nxc3 {[%emt 0:00:30]} Bxe5 {[%emt 0:03:30]} 17. Bxh7 {[%emt 0:08:30]} Bxd4 {[%emt 0:03:30]} 18. exd4 {[%emt 0:00:30]} Nxh7 {[%emt 0:01:30]} 19. d5 {[%emt 0:00:30]} cxd5 {[%emt 0:00:30]} 20. Qxd5 {[%emt 0:00:30]} Qxd5 {[%emt 0:01:30]} 21. Nxd5 {[%emt 0:00:00]} O-O {[%emt 0:06:30]} 22. Nb6 {[%emt 0:03:00]} Ra6 {[%emt 0:02:30]} 23. Nc4 {[%emt 0:00:30]} Nf6 {[%emt 0:03:30]} 24. Re5 {[%emt 0:00:30]} Nd5 {[%emt 0:00:30]} 25. f4 {[%emt 0:00:30]} Rc8 {[%emt 0:02:30]} 26. b3 {[%emt 0:01:30]} g6 {[%emt 0:06:30]} 27. Rae1 {[%emt 0:07:30]} Rb8 {[%emt 0:02:30]} 28. g4 {[%emt 0:02:30]} Nxf4 {[%emt 0:04:30]} 29. Rxa5 {[%emt 0:00:30]} Rxa5 {[%emt 0:00:30]} 30. Nxa5 {[%emt 0:00:30]} Nxh3+ {[%emt 0:00:30]} 31. Kh2 {[%emt 0:02:30]} Nf4 {[%emt 0:00:30]} 32. Rc1 {[%emt 0:01:30]} Nd5 {[%emt 0:00:00]} 33. Rc5 {[%emt 0:04:30]} b6 {[%emt 0:05:00]} 34. Rb5 {[%emt 0:00:00]} Ra8 {[%emt 0:10:26]} 35. Nc4 {[%emt 0:00:00]} Ra6 {[%emt 0:00:10]} 36. a5 {[%emt 0:04:30]} bxa5 {[%emt 0:00:07]} 37. Rxa5 {[%emt 0:00:30]} Rxa5 {[%emt 0:01:22]} 38. Nxa5 {[%emt 0:00:00]} f5 {[%emt 0:00:12]} 39. Kg3 {[%emt 0:00:00]} Kf7 {[%emt 0:00:52]} 40. Nc6 {[%emt 0:00:30]} Kf6 {[%emt 0:00:06]} 41. b4 {[%emt 0:01:30]} e5 {[%emt 0:01:06]} 42. b5 {[%emt 0:01:30]} e4 {[%emt 0:00:29]} 43. gxf5 {[%emt 0:00:30]} gxf5 {[%emt 0:00:05]} 44. Na5 {[%emt 0:01:30]} f4+ {[%emt 0:00:05]} 45. Kf2 {[%emt 0:00:00]} Nb6 {[%emt 0:00:08]} 46. Nb3 {[%emt 0:01:00]} h5 {[%emt 0:00:22]} 47. Nd4 {[%emt 0:01:30]} h4 {[%emt 0:00:27]} 48. Kg2 {[%emt 0:00:30]} Kg5 {[%emt 0:01:56]} 49. Kh3 {[%emt 0:00:30]} f3 {[%emt 0:00:15]} 50. Nc2 {[%emt 0:01:30]} Nd5 {[%emt 0:00:12]} 51. Kh2 {[%emt 0:02:30]} Kf4 {[%emt 0:00:51]} 52. Kg1 {[%emt 0:01:30]} e3 {[%emt 0:00:07]} 53. Kf1 {[%emt 0:00:30]} h3 {[%emt 0:00:04]} 0-1

[Event "Turkish Cup 2024"]
[Site "Denizli"]
[Date "2024.08.01"]
[Round "4"]
[White "Asikoglu, Engin Can"]
[Black "Maruflu, Enes Yusuf"]
[Result "1/2-1/2"]
[ECO "D02"]
[WhiteElo "1843"]
[BlackElo "2228"]
[Annotator "RC"]
[PlyCount "83"]
[EventDate "2024.08.01"]
[EventType "swiss"]
[EventCountry "TUR"]
[SourceTitle "playchess.com"]
[Source "ChessBase"]
[SourceQuality "1"]
[TimeControl "5400+30"]

1. d4 {[%emt 0:01:00]} Nf6 {[%emt 0:07:00]} 2. Bf4 {[%emt 0:00:00]} d5 {[%emt 0:00:30]} 3. e3 {[%emt 0:00:00]} c5 {[%emt 0:00:30]} 4. Nf3 {[%emt 0:00:30]} Nc6 {[%emt 0:00:30]} 5. Nbd2 {[%emt 0:00:00]} Nh5 {[%emt 0:00:00]} 6. Be5 {[%emt 0:04:00]} e6 {[%emt 0:04:00]} 7. c3 {[%emt 0:02:30]} f6 {[%emt 0:01:30]} 8. Bg3 {[%emt 0:00:30]} Qb6 {[%emt 0:01:30]} 9. Qb3 {[%emt 0:01:30]} Nxg3 {[%emt 0:00:30]} 10. hxg3 {[%emt 0:00:30]} Bd7 {[%emt 0:00:30]} 11. Bd3 {[%emt 0:02:30]} Qxb3 {[%emt 0:00:30]} 12. axb3 {[%emt 0:00:00]} Kf7 {[%emt 0:00:30]} 13. dxc5 {[%emt 0:09:00]} Bxc5 {[%emt 0:00:30]} 14. e4 {[%emt 0:00:30]} h5 {[%emt 0:03:30]} 15. b4 {[%emt 0:06:30]} Bb6 {[%emt 0:10:30]} 16. Nb3 {[%emt 0:02:30]} g5 {[%emt 0:01:30]} 17. Nc5 {[%emt 0:09:30]} Bc8 {[%emt 0:02:30]} 18. Na4 {[%emt 0:11:30]} Bc7 {[%emt 0:00:30]} 19. O-O-O {[%emt 0:10:30]} g4 {[%emt 0:02:30]} 20. exd5 {[%emt 0:07:30]} gxf3 {[%emt 0:05:30]} 21. dxc6 {[%emt 0:00:30]} fxg2 {[%emt 0:00:30]} 22. Rhg1 {[%emt 0:04:30]} f5 {[%emt 0:05:30]} 23. Rxg2 {[%emt 0:00:30]} bxc6 {[%emt 0:00:30]} 24. Rgg1 {[%emt 0:04:30]} Kf6 {[%emt 0:05:30]} 25. b5 {[%emt 0:07:08]} cxb5 {[%emt 0:00:30]} 26. Bxb5 {[%emt 0:00:06]} Rh7 {[%emt 0:02:30]} 27. Rd4 {[%emt 0:05:03]} Rb8 {[%emt 0:02:30]} 28. Be2 {[%emt 0:01:10]} Be5 {[%emt 0:07:30]} 29. Rh4 {[%emt 0:01:57]} Bd7 {[%emt 0:01:30]} 30. Nc5 {[%emt 0:00:06]} Be8 {[%emt 0:00:30]} 31. Rgh1 {[%emt 0:01:48]} Bd6 {[%emt 0:00:30]} 32. Nd3 {[%emt 0:00:13]} Rd8 {[%emt 0:04:30]} 33. Kc2 {[%emt 0:00:52]} e5 {[%emt 0:06:30]} 34. Bxh5 {[%emt 0:01:26]} Bc6 {[%emt 0:00:00]} 35. Be2 {[%emt 0:00:39]} Rxh4 {[%emt 0:05:00]} 36. Rxh4 {[%emt 0:01:01]} Be4 {[%emt 0:03:27]} 37. f3 {[%emt 0:02:00]} Ba8 {[%emt 0:01:59]} 38. Ra4 {[%emt 0:00:56]} Rd7 {[%emt 0:05:54]} 39. Ra6 {[%emt 0:00:37]} Ke7 {[%emt 0:00:45]} 40. Ra5 {[%emt 0:02:41]} e4 {[%emt 0:01:31]} 41. Ne5 {[%emt 0:00:37]} Bxe5 {[%emt 0:08:39]} 42. Rxe5+ {[%emt 0:00:05]} 1/2-1/2

[Event "Turkish Cup 2024"]
[Site "Denizli"]
[Date "2024.08.01"]
[Round "4"]
[White "Bilir, Ibrahim"]
[Black "Saygin, Semir"]
[Result "1-0"]
[ECO "B86"]
[WhiteElo "1830"]
[BlackElo "1885"]
[Annotator "NA"]
[PlyCount "91"]
[EventDate "2024.08.01"]
[EventType "swiss"]
[EventCountry "TUR"]
[SourceTitle "playchess.com"]
[Source "ChessBase"]
[SourceQuality "1"]
[TimeControl "5400+30"]

1. e4 {[%emt 0:01:00]} c5 {[%emt 0:01:00]} 2. Nf3 {[%emt 0:00:30]} d6 {[%emt 0:00:00]} 3. d4 {[%emt 0:00:00]} cxd4 {[%emt 0:01:00]} 4. Nxd4 {[%emt 0:00:00]} Nf6 {[%emt 0:00:00]} 5. Nc3 {[%emt 0:00:30]} a6 {[%emt 0:00:00]} 6. Bc4 {[%emt 0:00:30]} e6 {[%emt 0:02:30]} 7. a3 {[%emt 0:00:30]} b5 {[%emt 0:03:30]} 8. Ba2 {[%emt 0:00:30]} Bb7 {[%emt 0:00:00]} 9. O-O {[%emt 0:00:30]} Nc6 {[%emt 0:04:00]} 10. Nxc6 {[%emt 0:07:30]} Bxc6 {[%emt 0:00:30]} 11. Qe2 {[%emt 0:01:30]} Be7 {[%emt 0:01:30]} 12. f4 {[%emt 0:04:30]} O-O {[%emt 0:02:30]} 13. f5 {[%emt 0:06:30]} e5 {[%emt 0:04:30]} 14. Qf3 {[%emt 0:06:30]} Qb6+ {[%emt 0:01:30]} 15. Be3 {[%emt 0:08:30]} Qb7 {[%emt 0:00:30]} 16. Bg5 {[%emt 0:00:30]} Rac8 {[%emt 0:11:30]} 17. Bxf6 {[%emt 0:08:30]} Bxf6 {[%emt 0:00:00]} 18. Rf2 {[%emt 0:01:30]} Bd8 {[%emt 0:03:00]} 19. Nd5 {[%emt 0:16:30]} Bxd5 {[%emt 0:14:30]} 20. Bxd5 {[%emt 0:00:30]} Qa7 {[%emt 0:01:30]} 21. Kh1 {[%emt 0:01:30]} Rc5 {[%emt 0:04:30]} 22. Qe3 {[%emt 0:05:30]} Qb6 {[%emt 0:06:30]} 23. Qg3 {[%emt 0:04:30]} Bf6 {[%emt 0:02:30]} 24. Rd1 {[%emt 0:01:30]} Rfc8 {[%emt 0:00:30]} 25. c3 {[%emt 0:00:30]} a5 {[%emt 0:02:30]} 26. Rfd2 {[%emt 0:05:36]} Rd8 {[%emt 0:11:30]} 27. h4 {[%emt 0:02:15]} Qc7 {[%emt 0:01:30]} 28. Qf2 {[%emt 0:02:24]} Qe7 {[%emt 0:00:30]} 29. g3 {[%emt 0:00:05]} h6 {[%emt 0:01:42]} 30. Kg2 {[%emt 0:02:16]} Rdc8 {[%emt 0:02:51]} 31. Kh3 {[%emt 0:01:18]} Kh7 {[%emt 0:03:14]} 32. Rf1 {[%emt 0:01:18]} Rf8 {[%emt 0:00:39]} 33. Qe3 {[%emt 0:02:32]} Qd8 {[%emt 0:04:13]} 34. Qd3 {[%emt 0:00:49]} Qc8 {[%emt 0:02:04]} 35. g4 {[%emt 0:01:11]} Be7 {[%emt 0:02:25]} 36. Qe3 {[%emt 0:01:05]} Qd8 {[%emt 0:01:28]} 37. Qg3 {[%emt 0:01:09]} f6 {[%emt 0:00:13]} 38. Qd3 {[%emt 0:00:37]} Qc7 {[%emt 0:00:26]} 39. Rf3 {[%emt 0:00:37]} a4 {[%emt 0:01:25]} 40. Rg2 {[%emt 0:00:40]} Qd8 {[%emt 0:00:57]} 41. Rfg3 {[%emt 0:00:39]} Qc8 {[%emt 0:01:18]} 42. Kh2 {[%emt 0:02:03]} Qd8 {[%emt 0:00:50]} 43. g5 {[%emt 0:01:12]} fxg5 {[%emt 0:02:29]} 44. hxg5 {[%emt 0:00:19]} h5 {[%emt 0:00:59]} 45. g6+ {[%emt 0:00:45]} Kh8 {[%emt 0:00:20]} 46. Qf3 {[%emt 0:00:15]} 1-0

[Event "Turkish Cup 2024"]
[Site "Denizli"]
[Date "2024.08.01"]
[Round "4"]
[White "Sadik, Muhammed Selim"]
[Black "Atis, Hasan"]
[Result "1-0"]
[ECO "D85"]
[WhiteElo "1798"]
[BlackElo "2080"]
[Annotator "ChessBase"]
[PlyCount "109"]
[EventDate "2024.08.01"]
[EventType "swiss"]
[EventCountry "TUR"]
[SourceTitle "playchess.com"]
[Source "ChessBase"]
[SourceQuality "1"]
[TimeControl "5400+30"]

1. d4 {[%emt 0:05:00]} Nf6 {[%emt 0:01:00]} 2. c4 {[%emt 0:00:30]} g6 {[%emt 0:00:30]} 3. Nc3 {[%emt 0:00:00]} d5 {[%emt 0:00:00]} 4. cxd5 {[%emt 0:00:00]} Nxd5 {[%emt 0:00:00]} 5. e4 {[%emt 0:00:00]} Nxc3 {[%emt 0:00:30]} 6. bxc3 {[%emt 0:00:00]} Bg7 {[%emt 0:00:30]} 7. Be3 {[%emt 0:00:00]} O-O {[%emt 0:00:00]} 8. Rc1 {[%emt 0:00:00]} c5 {[%emt 0:00:00]} 9. Qd2 {[%emt 0:00:30]} Qa5 {[%emt 0:00:00]} 10. Nf3 {[%emt 0:00:30]} Nd7 {[%emt 0:00:00]} 11. Bd3 {[%emt 0:00:30]} e5 {[%emt 0:02:30]} 12. dxe5 {[%emt 0:01:30]} Nxe5 {[%emt 0:01:30]} 13. Nxe5 {[%emt 0:00:30]} Bxe5 {[%emt 0:00:00]} 14. O-O {[%emt 0:01:30]} Rd8 {[%emt 0:04:00]} 15. Qc2 {[%emt 0:00:30]} Bd7 {[%emt 0:36:30]} 16. f4 {[%emt 0:05:30]} Ba4 {[%emt 0:01:30]} 17. Qf2 {[%emt 0:07:30]} Bxc3 {[%emt 0:04:30]} 18. Bc4 {[%emt 0:00:30]} Rd2 {[%emt 0:41:02]} 19. Bxd2 {[%emt 0:03:30]} Bxd2 {[%emt 0:00:01]} 20. f5 {[%emt 0:00:30]} g5 {[%emt 0:00:41]} 21. Rb1 {[%emt 0:03:30]} Qc3 {[%emt 0:00:15]} 22. Qe2 {[%emt 0:00:30]} b6 {[%emt 0:01:46]} 23. Bd5 {[%emt 0:06:30]} Re8 {[%emt 0:00:01]} 24. Qh5 {[%emt 0:03:30]} Qf6 {[%emt 0:00:30]} 25. Kh1 {[%emt 0:00:30]} Re7 {[%emt 0:01:51]} 26. Rf2 {[%emt 0:04:30]} Bc3 {[%emt 0:01:03]} 27. Rf3 {[%emt 0:04:30]} Bd4 {[%emt 0:02:30]} 28. Rg3 {[%emt 0:03:30]} h6 {[%emt 0:01:12]} 29. h4 {[%emt 0:00:30]} Kf8 {[%emt 0:00:00]} 30. hxg5 {[%emt 0:02:30]} hxg5 {[%emt 0:00:07]} 31. Rxg5 {[%emt 0:00:30]} Qh8 {[%emt 0:00:30]} 32. Qxh8+ {[%emt 0:00:30]} Bxh8 {[%emt 0:00:30]} 33. Rh5 {[%emt 0:00:30]} Bd4 {[%emt 0:00:30]} 34. g4 {[%emt 0:00:30]} Rc7 {[%emt 0:00:30]} 35. g5 {[%emt 0:00:30]} Ke7 {[%emt 0:00:30]} 36. Rh7 {[%emt 0:00:30]} Kd6 {[%emt 0:00:30]} 37. g6 {[%emt 0:00:30]} fxg6 {[%emt 0:00:30]} 38. fxg6 {[%emt 0:01:30]} Rg7 {[%emt 0:01:20]} 39. Rxg7 {[%emt 0:00:30]} Bxg7 {[%emt 0:00:01]} 40. Kg2 {[%emt 0:04:30]} Be8 {[%emt 0:00:23]} 41. Bf7 {[%emt 0:02:30]} Bc6 {[%emt 0:00:12]} 42. Kf3 {[%emt 0:00:30]} b5 {[%emt 0:00:03]} 43. Kf4 {[%emt 0:02:30]} c4 {[%emt 0:00:30]} 44. Rd1+ {[%emt 0:00:30]} Ke7 {[%emt 0:00:00]} 45. e5 {[%emt 0:01:30]} c3 {[%emt 0:00:00]} 46. Bb3 {[%emt 0:02:30]} Be8 {[%emt 0:01:34]} 47. Bc2 {[%emt 0:04:30]} Bh6+ {[%emt 0:01:28]} 48. Kf5 {[%emt 0:00:00]} Bg7 {[%emt 0:00:49]} 49. e6 {[%emt 0:04:00]} a5 {[%emt 0:00:15]} 50. Rh1 {[%emt 0:00:30]} a4 {[%emt 0:00:30]} 51. Rh7 {[%emt 0:00:30]} Kf8 {[%emt 0:00:00]} 52. Be4 {[%emt 0:00:30]} Bc6 {[%emt 0:01:09]} 53. e7+ {[%emt 0:01:30]} Kxe7 {[%emt 0:00:27]} 54. Rxg7+ {[%emt 0:00:30]} Kd6 {[%emt 0:00:09]} 55. Bc2 {[%emt 0:00:00]} 1-0

[Event "Turkish Cup 2024"]
[Site "Denizli"]
[Date "2024.08.01"]
[Round "4"]
[White "Ulupinar, Furkan"]
[Black "Uysal, Ugur"]
[Result "0-1"]
[ECO "E90"]
[WhiteElo "1785"]
[BlackElo "2114"]
[Annotator "RC"]
[PlyCount "92"]
[EventDate "2024.08.01"]
[EventType "swiss"]
[EventCountry "TUR"]
[SourceTitle "playchess.com"]
[Source "ChessBase"]
[SourceQuality "1"]
[TimeControl "5400+30"]

1. d4 {[%emt 0:02:00]} Nf6 {[%emt 0:01:00]} 2. c4 {[%emt 0:00:00]} g6 {[%emt 0:00:00]} 3. Nc3 {[%emt 0:00:00]} Bg7 {[%emt 0:00:00]} 4. e4 {[%emt 0:00:30]} d6 {[%emt 0:00:00]} 5. Nf3 {[%emt 0:00:30]} O-O {[%emt 0:00:00]} 6. Bg5 {[%emt 0:00:30]} h6 {[%emt 0:00:30]} 7. Be3 {[%emt 0:02:30]} Bg4 {[%emt 0:02:30]} 8. Qd2 {[%emt 0:03:30]} Bxf3 {[%emt 0:00:30]} 9. gxf3 {[%emt 0:00:00]} Kh7 {[%emt 0:03:30]} 10. O-O-O {[%emt 0:03:00]} Nbd7 {[%emt 0:01:30]} 11. f4 {[%emt 0:00:30]} Ng4 {[%emt 0:01:30]} 12. h4 {[%emt 0:05:30]} h5 {[%emt 0:00:30]} 13. Bh3 {[%emt 0:14:30]} Nxe3 {[%emt 0:00:30]} 14. fxe3 {[%emt 0:00:30]} e6 {[%emt 0:04:30]} 15. f5 {[%emt 0:06:30]} e5 {[%emt 0:15:30]} 16. Kb1 {[%emt 0:02:30]} Nf6 {[%emt 0:02:30]} 17. Qg2 {[%emt 0:05:30]} Qe8 {[%emt 0:00:00]} 18. Rhg1 {[%emt 0:01:30]} Bh6 {[%emt 0:09:00]} 19. Qf3 {[%emt 0:04:30]} Qe7 {[%emt 0:05:30]} 20. Rg3 {[%emt 0:06:30]} exd4 {[%emt 0:01:30]} 21. exd4 {[%emt 0:00:30]} Rae8 {[%emt 0:00:30]} 22. Ka1 {[%emt 0:10:30]} c5 {[%emt 0:11:30]} 23. dxc5 {[%emt 0:04:30]} dxc5 {[%emt 0:00:30]} 24. Rdg1 {[%emt 0:01:30]} Bd2 {[%emt 0:03:30]} 25. Nd5 {[%emt 0:03:30]} Nxd5 {[%emt 0:00:30]} 26. exd5 {[%emt 0:00:30]} Qe1+ {[%emt 0:05:30]} 27. Qd1 {[%emt 0:00:30]} Qxd1+ {[%emt 0:01:30]} 28. Rxd1 {[%emt 0:00:30]} Be1 {[%emt 0:00:00]} 29. Rb3 {[%emt 0:02:30]} b6 {[%emt 0:01:00]} 30. Ra3 {[%emt 0:02:08]} Bxh4 {[%emt 0:00:30]} 31. fxg6+ {[%emt 0:03:50]} fxg6 {[%emt 0:00:30]} 32. Rxa7+ {[%emt 0:00:07]} Re7 {[%emt 0:00:30]} 33. Rxe7+ {[%emt 0:01:37]} Bxe7 {[%emt 0:00:30]} 34. d6 {[%emt 0:01:20]} Bd8 {[%emt 0:00:30]} 35. a3 {[%emt 0:01:46]} g5 {[%emt 0:00:30]} 36. Bd7 {[%emt 0:05:03]} g4 {[%emt 0:02:30]} 37. b4 {[%emt 0:00:38]} g3 {[%emt 0:03:30]} 38. Bh3 {[%emt 0:02:26]} Rf2 {[%emt 0:04:30]} 39. bxc5 {[%emt 0:01:23]} bxc5 {[%emt 0:00:00]} 40. d7 {[%emt 0:00:54]} Kg6 {[%emt 0:01:00]} 41. Re1 {[%emt 0:03:56]} Kg5 {[%emt 0:00:30]} 42. Re8 {[%emt 0:00:39]} Bf6+ {[%emt 0:00:30]} 43. Kb1 {[%emt 0:00:00]} Kh4 {[%emt 0:00:30]} 44. Rf8 {[%emt 0:00:56]} Kxh3 {[%emt 0:01:30]} 45. Rxf6 {[%emt 0:00:30]} g2 {[%emt 0:00:00]} 46. Rg6 {[%emt 0:00:38]} Rd2 {[%emt 0:00:00]} 0-1

[Event "Turkish Cup 2024"]
[Site "Denizli"]
[Date "2024.08.01"]
[Round "4"]
[White "Abak, Tuana"]
[Black "Manas, Eren"]
[Result "0-1"]
[ECO "B22"]
[WhiteElo "1784"]
[BlackElo "2013"]
[Annotator "RC"]
[PlyCount "120"]
[EventDate "2024.08.01"]
[EventType "swiss"]
[EventCountry "TUR"]
[SourceTitle "playchess.com"]
[Source "ChessBase"]
[SourceQuality "1"]
[TimeControl "5400+30"]

1. e4 {[%emt 0:01:00]} c5 {[%emt 0:01:00]} 2. c3 {[%emt 0:00:00]} Nf6 {[%emt 0:00:30]} 3. e5 {[%emt 0:00:00]} Nd5 {[%emt 0:00:00]} 4. Nf3 {[%emt 0:00:00]} Nc6 {[%emt 0:00:00]} 5. Bc4 {[%emt 0:00:00]} Nb6 {[%emt 0:00:30]} 6. Bb3 {[%emt 0:00:30]} d5 {[%emt 0:00:30]} 7. exd6 {[%emt 0:00:30]} Qxd6 {[%emt 0:00:00]} 8. O-O {[%emt 0:00:00]} Be6 {[%emt 0:01:00]} 9. Bxe6 {[%emt 0:01:00]} Qxe6 {[%emt 0:00:30]} 10. a4 {[%emt 0:00:00]} Qd7 {[%emt 0:01:30]} 11. a5 {[%emt 0:00:00]} Nd5 {[%emt 0:00:30]} 12. a6 {[%emt 0:00:30]} b6 {[%emt 0:00:30]} 13. d4 {[%emt 0:00:30]} cxd4 {[%emt 0:00:30]} 14. cxd4 {[%emt 0:00:30]} e6 {[%emt 0:10:30]} 15. Nc3 {[%emt 0:02:30]} Be7 {[%emt 0:02:30]} 16. Be3 {[%emt 0:04:30]} O-O {[%emt 0:00:30]} 17. Qe2 {[%emt 0:03:30]} Rac8 {[%emt 0:05:30]} 18. Rfd1 {[%emt 0:08:30]} Rfd8 {[%emt 0:01:30]} 19. Rac1 {[%emt 0:04:30]} Qe8 {[%emt 0:10:30]} 20. h4 {[%emt 0:08:30]} h6 {[%emt 0:10:30]} 21. g3 {[%emt 0:03:30]} Nxc3 {[%emt 0:12:30]} 22. bxc3 {[%emt 0:00:30]} Na5 {[%emt 0:01:30]} 23. Ne5 {[%emt 0:03:30]} Bf6 {[%emt 0:02:30]} 24. Ng4 {[%emt 0:01:30]} Be7 {[%emt 0:04:30]} 25. Ne5 {[%emt 0:00:30]} Bd6 {[%emt 0:04:30]} 26. Ng4 {[%emt 0:15:30]} f5 {[%emt 0:04:30]} 27. Nh2 {[%emt 0:04:30]} Nc4 {[%emt 0:01:30]} 28. Re1 {[%emt 0:00:30]} Qg6 {[%emt 0:02:30]} 29. h5 {[%emt 0:02:30]} Qf7 {[%emt 0:00:00]} 30. Qf3 {[%emt 0:01:30]} Re8 {[%emt 0:03:13]} 31. Nf1 {[%emt 0:04:30]} e5 {[%emt 0:03:23]} 32. Nd2 {[%emt 0:02:30]} e4 {[%emt 0:02:00]} 33. Qh1 {[%emt 0:01:30]} Nxe3 {[%emt 0:04:28]} 34. Rxe3 {[%emt 0:00:30]} f4 {[%emt 0:00:29]} 35. Rxe4 {[%emt 0:00:30]} fxg3 {[%emt 0:00:16]} 36. fxg3 {[%emt 0:00:30]} Bxg3 {[%emt 0:01:37]} 37. Qg2 {[%emt 0:01:30]} Bf4 {[%emt 0:02:12]} 38. Rf1 {[%emt 0:03:30]} Rxe4 {[%emt 0:00:18]} 39. Qxe4 {[%emt 0:01:30]} Rf8 {[%emt 0:00:27]} 40. Qe2 {[%emt 0:05:52]} Qf5 {[%emt 0:02:33]} 41. c4 {[%emt 0:06:03]} Qg5+ {[%emt 0:01:20]} 42. Kh1 {[%emt 0:00:01]} Qh4+ {[%emt 0:00:15]} 43. Kg1 {[%emt 0:00:09]} Qg3+ {[%emt 0:00:22]} 44. Qg2 {[%emt 0:00:38]} Qxg2+ {[%emt 0:00:47]} 45. Kxg2 {[%emt 0:00:30]} Bxd2 {[%emt 0:00:00]} 46. Rd1 {[%emt 0:00:00]} Bb4 {[%emt 0:01:41]} 47. Rd3 {[%emt 0:00:00]} Rf5 {[%emt 0:01:23]} 48. Re3 {[%emt 0:00:11]} Kf7 {[%emt 0:00:27]} 49. Rb3 {[%emt 0:00:55]} Be7 {[%emt 0:00:45]} 50. c5 {[%emt 0:00:49]} bxc5 {[%emt 0:00:12]} 51. Rb7 {[%emt 0:00:12]} cxd4 {[%emt 0:00:12]} 52. Rxa7 {[%emt 0:00:12]} Rxh5 {[%emt 0:00:19]} 53. Rb7 {[%emt 0:00:16]} Ra5 {[%emt 0:00:13]} 54. a7 {[%emt 0:00:18]} Ke6 {[%emt 0:02:44]} 55. Rb6+ {[%emt 0:00:17]} Kd7 {[%emt 0:01:00]} 56. Rb7+ {[%emt 0:00:05]} Kd6 {[%emt 0:00:00]} 57. Kf3 {[%emt 0:00:25]} Bf6 {[%emt 0:00:26]} 58. Ke4 {[%emt 0:00:26]} Kc6 {[%emt 0:00:30]} 59. Rf7 {[%emt 0:01:19]} Kb6 {[%emt 0:00:09]} 60. Rxf6+ {[%emt 0:00:31]} gxf6 {[%emt 0:00:08]} 0-1